bitfinex-derivatives/quotes_BTCF0:USTF0_20251206
["timestamp","ask_amount","ask_price","bid_price","bid_amount"]
[1764983736246,0.06226,89455.0,89454.0,0.05732]
[1764983738741,0.03257,89455.0,89454.0,0.05732]
[1764983738941,0.06226,89455.0,89454.0,0.05732]
[1764983739445,0.0111772,89451.0,89449.0,0.02997912]
[1764983739748,0.0111772,89451.0,89446.0,0.00016771]
[1764983739749,0.05967,89447.0,89446.0,0.00016771]
[1764983739948,0.40967,89447.0,89446.0,0.00016771]
[1764983740850,0.41267,89447.0,89446.0,0.00016771]
[1764983741951,0.41367,89447.0,89446.0,0.05758771]
[1764983744951,0.41367,89447.0,89446.0,0.08760019]
[1764983745156,0.41367,89447.0,89446.0,0.05758771]
[1764983745359,0.41367,89447.0,89446.0,0.08759759]
[1764983745954,0.20367,89447.0,89446.0,0.08759759]
[1764983746257,0.06367,89447.0,89446.0,0.05758771]
[1764983749860,0.06367,89447.0,89446.0,0.09757326]
[1764983752960,0.06367,89447.0,89446.0,0.05758771]
[1764983756964,0.06267,89447.0,89446.0,0.05758771]
[1764983761472,0.06267,89447.0,89446.0,0.09757326]
[1764983762867,0.06267,89447.0,89446.0,0.05758771]
[1764983765269,0.47267,89447.0,89446.0,0.05758771]
[1764983765465,0.47167,89447.0,89446.0,0.05758771]
[1764983765665,0.47267,89447.0,89446.0,0.05758771]
[1764983766261,0.47167,89447.0,89446.0,0.05758771]
[1764983766470,0.47267,89447.0,89446.0,0.05758771]
[1764983767273,0.25267,89447.0,89446.0,0.05758771]
[1764983767774,0.003,89447.0,89446.0,0.45758771]
[1764983768475,0.22538549,89470.0,89446.0,0.45758771]
[1764983768476,0.05817771,89463.0,89462.0,0.05859]
[1764983769660,0.00116771,89463.0,89462.0,0.05859]
[1764983770067,0.00116771,89463.0,89462.0,0.45859]
[1764983770263,0.00116771,89463.0,89462.0,0.51867203]
[1764983770463,0.00116771,89463.0,89462.0,0.45859]
[1764983771168,0.00116771,89463.0,89462.0,0.51858435]
[1764983771371,0.00016771,89463.0,89462.0,0.51858435]
[1764983771676,0.00116771,89463.0,89462.0,0.51858435]
[1764983771868,0.01734,89488.0,89462.0,0.51858435]
[1764983771869,0.05801,89484.0,89483.0,0.05859]
[1764983772062,0.07801,89484.0,89483.0,0.05859]
[1764983772262,0.05801,89484.0,89483.0,0.05859]
[1764983773074,0.05901,89484.0,89483.0,0.05859]
[1764983773774,0.06101,89484.0,89483.0,0.05859]
[1764983778368,0.03293,89484.0,89483.0,0.05859]
[1764983778574,0.06101,89484.0,89483.0,0.05859]
[1764983780380,0.003,89484.0,89483.0,0.05859]
[1764983781679,0.003,89484.0,89483.0,0.46859]
[1764983785779,0.06101,89484.0,89483.0,0.46859]
[1764983794886,0.003,89484.0,89483.0,0.46859]
[1764983800190,0.003,89484.0,89483.0,0.50858362]
[1764983801094,0.003,89484.0,89483.0,0.46859]
[1764983801497,0.00016771,89492.0,89491.0,0.0678322]
[1764983801700,0.0698203,89507.0,89506.0,0.05666]
[1764983801993,0.4398203,89507.0,89506.0,0.05666]
[1764983802892,0.42865,89507.0,89506.0,0.05666]
[1764983804697,0.42965,89507.0,89506.0,0.05666]
[1764983805204,0.05865,89502.0,89501.0,0.08666341]
[1764983805399,0.0698209,89502.0,89501.0,0.05666]
[1764983806395,0.0708209,89502.0,89501.0,0.05666]
[1764983807290,0.05965,89502.0,89501.0,0.05666]
[1764983816502,0.05784,89499.0,89498.0,0.0281776]
[1764983816807,0.45784,89499.0,89498.0,0.0281776]
[1764983817702,0.45884,89499.0,89498.0,0.0281776]
[1764983818308,0.45884,89499.0,89498.0,0.0001676]
[1764983818609,0.45884,89499.0,89498.0,0.0563776]
[1764983820808,0.45884,89499.0,89498.0,0.0281776]
[1764983821113,0.45884,89499.0,89498.0,0.0573476]
[1764983825318,0.08884,89499.0,89498.0,0.0573476]
[1764983825716,0.05884,89499.0,89498.0,0.0573476]
[1764983831413,0.43783,89499.0,89498.0,0.0573476]
[1764983832811,0.43783,89499.0,89498.0,0.03017101]
[1764983833017,0.43783,89499.0,89498.0,0.0001676]
[1764983836019,0.43783,89499.0,89498.0,0.0285776]
[1764983836524,0.43783,89499.0,89498.0,0.0577476]
[1764983842128,0.05884,89499.0,89498.0,0.0577476]
[1764983844423,0.45884,89499.0,89498.0,0.0001676]
[1764983845731,0.05644,89483.0,89482.0,0.04000495]
[1764983845930,0.45644,89483.0,89482.0,0.09758495]
[1764983846129,0.45644,89483.0,89482.0,0.05758]
[1764983846430,0.4676132,89483.0,89482.0,0.05758]
[1764983847526,0.45644,89483.0,89482.0,0.05758]
[1764983847724,0.10644,89483.0,89482.0,0.05758]
[1764983848429,0.10744,89483.0,89482.0,0.05758]
[1764983849024,0.10644,89483.0,89482.0,0.05758]
[1764983849224,0.10744,89483.0,89482.0,0.05758]
[1764983849431,0.05744,89483.0,89482.0,0.05758]
[1764983856526,0.05744,89483.0,89482.0,0.02841]
[1764983857022,0.05744,89483.0,89482.0,0.05763]
[1764983862443,0.05644,89483.0,89482.0,0.05763]
[1764983862628,0.05744,89483.0,89482.0,0.05763]
[1764983862834,0.05664,89480.0,89479.0,0.05671]
[1764983880659,0.0691428,89487.0,89486.0,0.05656]
[1764983880847,0.1191428,89487.0,89486.0,0.05656]
[1764983882251,0.1201428,89487.0,89486.0,0.05656]
[1764983883855,0.4901428,89487.0,89486.0,0.05656]
[1764983886457,0.47897,89487.0,89486.0,0.05656]
[1764983893760,0.24897,89487.0,89486.0,0.05656]
[1764983894360,0.001,89487.0,89486.0,0.46656]
[1764983894552,0.001,89487.0,89486.0,0.52655043]
[1764983894752,0.0008324,89487.0,89486.0,0.46656]
[1764983894957,0.0001676,89491.0,89490.0,0.07401]
[1764983895152,0.0001676,89491.0,89490.0,0.49643002]
[1764983896764,0.0011676,89491.0,89490.0,0.49643002]
[1764983897261,0.0011676,89491.0,89490.0,0.55644103]
[1764983898163,0.0011676,89491.0,89490.0,0.49643002]
[1764983919988,0.0001676,89491.0,89490.0,0.49643002]
[1764983921186,0.0001676,89491.0,89490.0,0.5263933]
[1764983922189,0.0001676,89491.0,89490.0,0.49643002]
[1764983922990,0.0001676,89491.0,89490.0,0.55644103]
[1764983923291,0.0001676,89491.0,89490.0,0.49643002]
[1764983937603,0.0001676,89491.0,89490.0,0.49843002]
[1764983938211,0.0001676,89491.0,89490.0,0.49943002]
[1764983939699,0.0001676,89491.0,89490.0,0.50043002]
[1764983940607,0.0282976,89491.0,89490.0,0.50043002]
[1764983942100,0.0282976,89491.0,89490.0,0.06405002]
[1764983942101,0.0574976,89491.0,89490.0,0.06405002]
[1764983943410,0.0574976,89491.0,89490.0,0.06305002]
[1764983944109,0.0574976,89491.0,89490.0,0.12320314]
[1764983944411,0.0574976,89491.0,89490.0,0.12020314]
[1764983944714,0.0574976,89491.0,89490.0,0.12220314]
[1764983945007,0.0574976,89491.0,89490.0,0.12020314]
[1764983945309,0.0574976,89491.0,89490.0,0.12120314]
[1764983946100,0.0574976,89491.0,89490.0,0.11878312]
[1764983946303,0.0574976,89491.0,89490.0,0.05863]
[1764983948307,0.4374976,89491.0,89490.0,0.02991]
[1764983948509,0.4374976,89491.0,89490.0,0.001]
[1764983949409,0.4374976,89491.0,89490.0,0.03106724]
[1764983949805,0.4374976,89491.0,89490.0,0.001]
[1764983952312,0.4374976,89491.0,89483.0,0.0566]
[1764983952313,0.05733,89484.0,89483.0,0.0566]
[1764983952813,0.0685031,89484.0,89483.0,0.0566]
[1764983953009,0.0685031,89484.0,89483.0,0.09669056]
[1764983953210,0.0685031,89484.0,89483.0,0.0566]
[1764983954017,0.0685031,89484.0,89483.0,0.0576]
[1764983954920,0.0685031,89484.0,89483.0,0.0606]
[1764983955921,0.05733,89484.0,89483.0,0.0606]
[1764983964821,0.0001676,89491.0,89483.0,0.0606]
[1764983964822,0.0574976,89491.0,89490.0,0.06847]
[1764983965022,0.1074976,89491.0,89490.0,0.07089002]
[1764983966020,0.0574976,89491.0,89490.0,0.07189002]
[1764983968124,0.0001676,89491.0,89490.0,0.49189002]
[1764983968830,0.0001676,89491.0,89490.0,0.52191236]
[1764983969425,0.0001676,89491.0,89490.0,0.52091236]
[1764983969732,0.0001676,89491.0,89490.0,0.52391236]
[1764983970321,0.0564376,89491.0,89490.0,0.10204236]
[1764983970522,0.0564376,89491.0,89490.0,0.06202002]
[1764983971622,0.0564376,89491.0,89490.0,0.06102002]
[1764983971822,0.0564376,89491.0,89490.0,0.09104236]
[1764983972023,0.0564376,89491.0,89490.0,0.03023]
[1764983972318,0.0564376,89491.0,89490.0,0.05635]
[1764983972523,0.4664376,89491.0,89490.0,0.001]
[1764983972930,0.4664376,89491.0,89490.0,0.03102234]
[1764983974833,0.4664376,89491.0,89490.0,0.08575234]
[1764983975223,0.4674376,89491.0,89490.0,0.08475234]
[1764983977332,0.4674376,89491.0,89490.0,0.05473]
[1764983977934,0.2474376,89491.0,89490.0,0.05473]
[1764983978135,0.0574376,89491.0,89490.0,0.05473]
[1764983978935,0.0564376,89491.0,89490.0,0.05473]
[1764983979128,0.0574376,89491.0,89490.0,0.05473]
[1764983980738,0.0564376,89491.0,89490.0,0.05473]
[1764983980938,0.0574376,89491.0,89490.0,0.05473]
[1764983981538,0.0564376,89491.0,89490.0,0.05473]
[1764983981728,0.0282976,89491.0,89490.0,0.05473]
[1764983981929,0.0564376,89491.0,89490.0,0.05473]
[1764983984941,0.0671924,89490.0,89489.0,0.04009056]
[1764983985141,0.4471924,89490.0,89489.0,0.04009056]
[1764983985342,0.4471924,89490.0,89489.0,0.06770056]
[1764983985941,0.4471924,89490.0,89489.0,0.09482056]
[1764983990340,0.4471924,89490.0,89489.0,0.05473]
[1764983992938,0.4471924,89490.0,89489.0,0.09483053]
[1764983994552,0.05673,89489.0,89488.0,0.02394664]
[1764983994742,0.05673,89489.0,89481.0,0.02947454]
[1764983994743,0.0679034,89482.0,89481.0,0.02947454]
[1764983994942,0.0679042,89475.0,89474.0,0.0294376]
[1764983995148,0.0679042,89475.0,89474.0,0.0580676]
[1764983998245,0.0679042,89475.0,89474.0,0.0001676]
[1764984000743,0.4579042,89475.0,89474.0,0.0001676]
[1764984002439,0.02834,89475.0,89474.0,0.05976762]
[1764984002647,0.0700228,89487.0,89486.0,0.05718]
[1764984002955,0.5000228,89487.0,89486.0,0.05718]
[1764984003652,0.0111735,89481.0,89477.0,0.05718]
[1764984003951,0.0700235,89481.0,89480.0,0.05718]
[1764984004949,0.0700235,89481.0,89474.0,0.0001676]
[1764984004950,0.0111742,89475.0,89474.0,0.0001676]
[1764984005156,0.0111742,89475.0,89474.0,0.05976762]
[1764984005157,0.0700242,89475.0,89474.0,0.05976762]
[1764984005543,0.05885,89475.0,89474.0,0.05976762]
[1764984011950,0.05885,89475.0,89474.0,0.0573476]
[1764984031468,0.05885,89475.0,89474.0,0.11750072]
[1764984032464,0.05885,89475.0,89474.0,0.0573476]
[1764984033178,0.02943,89475.0,89474.0,0.0573476]
[1764984033563,0.0566,89475.0,89474.0,0.0573476]
[1764984038978,0.0656032,89484.0,89483.0,0.05847]
[1764984039275,0.3456032,89484.0,89483.0,0.05847]
[1764984040377,0.3466032,89484.0,89483.0,0.05847]
[1764984040879,0.3636732,89484.0,89483.0,0.05847]
[1764984041068,0.3636732,89484.0,89483.0,0.02879]
[1764984043185,0.3525,89484.0,89483.0,0.05847]
[1764984048598,0.3525,89484.0,89483.0,0.02879]
[1764984049186,0.3525,89484.0,89483.0,0.05747]
[1764984054899,0.05701,89475.0,89474.0,0.0001676]
[1764984055099,0.45379,89475.0,89474.0,0.0001676]
[1764984055303,0.51413152,89475.0,89474.0,0.0001676]
[1764984056505,0.45379,89475.0,89474.0,0.0001676]
[1764984059902,0.45479,89475.0,89474.0,0.0001676]
[1764984060108,0.05762,89459.0,89458.0,0.05769729]
[1764984060410,0.05762,89459.0,89458.0,0.08526729]
[1764984061301,0.05762,89459.0,89458.0,0.05515]
[1764984063407,0.05762,89459.0,89458.0,0.11530278]
[1764984065914,0.46762,89459.0,89458.0,0.05515]
[1764984071408,0.46762,89459.0,89458.0,0.0952241]
[1764984074521,0.46762,89459.0,89458.0,0.05515]
[1764984078721,0.15762,89459.0,89458.0,0.05515]
[1764984079307,0.0689629,89467.0,89466.0,0.05515]
[1764984079620,0.0577876,89467.0,89466.0,0.05757002]
[1764984080922,0.0587876,89467.0,89466.0,0.05757002]
[1764984083323,0.0587876,89467.0,89466.0,0.09764807]
[1764984084415,0.0587876,89467.0,89466.0,0.05757002]
[1764984086621,0.0011676,89467.0,89466.0,0.1342328]
[1764984086817,0.0011676,89467.0,89466.0,0.48408002]
[1764984087421,0.54792,89481.0,89480.0,0.05515]
[1764984087628,0.94792,89481.0,89480.0,0.05515]
[1764984087825,0.42968,89481.0,89480.0,0.05515]
[1764984088029,0.21762,89481.0,89480.0,0.05515]
[1764984089232,0.21862,89481.0,89480.0,0.05515]
[1764984089925,0.21862,89481.0,89480.0,0.09522421]
[1764984090428,0.05862,89481.0,89480.0,0.09522421]
[1764984091528,0.05862,89481.0,89480.0,0.05515]
[1764984093329,0.05862,89481.0,89480.0,0.08518283]
[1764984094640,0.05862,89481.0,89480.0,0.05515]
[1764984094934,0.001,89481.0,89480.0,0.05515]
[1764984095522,0.02983,89481.0,89480.0,0.05515]
[1764984096130,0.001,89481.0,89480.0,0.05515]
[1764984096325,0.02983,89481.0,89480.0,0.05515]
[1764984096736,0.001,89481.0,89480.0,0.05515]
[1764984097137,0.001,89481.0,89480.0,0.41515]
[1764984097338,0.001,89481.0,89480.0,0.47530747]
[1764984097532,0.001,89481.0,89480.0,0.41515]
[1764984097738,0.0001676,89489.0,89488.0,0.07451]
[1764984097934,0.0678409,89502.0,89501.0,0.058]
[1764984098133,0.0978409,89502.0,89501.0,0.058]
[1764984098333,0.05667,89502.0,89501.0,0.058]
[1764984099336,0.05667,89502.0,89501.0,0.06959566]
[1764984100241,0.05667,89502.0,89501.0,0.058]
[1764984101634,0.05667,89502.0,89501.0,0.06964282]
[1764984103559,0.0113375,89510.0,89506.0,0.0111704]
[1764984103747,0.06689727,89652.0,89500.0,0.01789]
[1764984103748,0.05667,89521.0,89520.0,0.01756]
[1764984103948,0.02883,89521.0,89520.0,0.0867286]
[1764984104147,0.00636,89536.0,89520.0,0.0867286]
[1764984104148,0.06034152,89539.0,89525.0,0.069168]
[1764984104354,0.0111662,89540.0,89525.0,0.07158802]
[1764984104548,0.17602465,89540.0,89525.0,0.07158802]
[1764984104748,0.00011109,89534.0,89525.0,0.07158802]
[1764984105153,0.02910925,89526.0,89525.0,0.07158802]
[1764984105350,0.00027925,89526.0,89525.0,0.07158802]
[1764984105750,0.00027925,89526.0,89525.0,0.06042002]
[1764984106056,0.02910925,89526.0,89525.0,0.06042002]
[1764984106253,0.05694925,89526.0,89525.0,0.07158802]
[1764984106756,0.05794925,89526.0,89525.0,0.07158802]
[1764984106955,0.05794925,89526.0,89525.0,0.06042002]
[1764984109359,0.05794925,89526.0,89525.0,0.00242002]
[1764984109651,0.05794925,89526.0,89525.0,0.06058002]
[1764984112350,0.05794925,89526.0,89525.0,0.00242002]
[1764984112549,0.05794925,89526.0,89525.0,0.06058002]
[1764984116362,0.44794925,89526.0,89525.0,0.03111002]
[1764984116860,0.44794925,89526.0,89525.0,0.06058002]
[1764984121359,0.42010925,89526.0,89525.0,0.06058002]
[1764984121660,0.44922925,89526.0,89525.0,0.06054002]
[1764984122755,0.44922925,89526.0,89525.0,0.05812]
[1764984123156,0.20922925,89526.0,89525.0,0.05812]
[1764984124362,0.20922925,89526.0,89517.0,0.0001676]
[1764984124363,0.02851,89518.0,89517.0,0.0001676]
[1764984124664,0.42763,89518.0,89517.0,0.0001676]
[1764984125654,0.42763,89518.0,89505.0,0.0298725]
[1764984125855,0.05763,89506.0,89505.0,0.0678704]
[1764984126162,0.05763,89506.0,89505.0,0.0567]
[1764984126558,0.05763,89506.0,89505.0,0.07313]
[1764984126759,0.05763,89506.0,89505.0,0.0567]
[1764984127259,0.0281905,89505.0,89502.0,0.0865725]
[1764984127468,0.0858205,89505.0,89504.0,0.02969002]
[1764984127664,0.0858205,89505.0,89504.0,0.02727]
[1764984127964,0.0858205,89505.0,89504.0,0.0567]
[1764984128560,0.05763,89505.0,89504.0,0.0567]
[1764984130258,0.02851,89505.0,89504.0,0.0567]
[1764984130462,0.05763,89505.0,89504.0,0.0567]
[1764984135672,0.05763,89505.0,89504.0,0.07313]
[1764984136275,0.05763,89505.0,89504.0,0.0843006]
[1764984142273,0.0687997,89512.0,89511.0,0.0567]
[1764984143073,0.05763,89512.0,89511.0,0.0567]
[1764984150791,0.0281276,89514.0,89513.0,0.05641]
[1764984150982,0.0281276,89514.0,89513.0,0.05883002]
[1764984151275,0.0281276,89514.0,89513.0,0.51889852]
[1764984151276,0.0001676,89514.0,89513.0,0.51889852]
[1764984151476,0.0001676,89514.0,89513.0,0.48883002]
[1764984151680,0.0685082,89524.0,89523.0,0.05641]
[1764984152692,0.0695082,89524.0,89523.0,0.05641]
[1764984158686,0.05834,89524.0,89523.0,0.05641]
[1764984159083,0.001,89524.0,89523.0,0.05641]
[1764984159385,0.05734,89550.0,89548.0,0.01793]
[1764984159595,0.05734,89542.0,89541.0,0.067576]
[1764984159779,0.05734,89542.0,89541.0,0.117576]
[1764984160286,0.05734,89542.0,89541.0,0.10641]
[1764984160482,0.05734,89542.0,89541.0,0.05641]
[1764984160680,0.05734,89542.0,89541.0,0.02764]
[1764984160681,0.48734,89542.0,89541.0,0.02764]
[1764984161080,0.05734,89534.0,89533.0,0.0565775]
[1764984161280,0.44734,89534.0,89533.0,0.0001675]
[1764984161495,0.27734,89534.0,89533.0,0.0565775]
[1764984161787,0.05734,89534.0,89533.0,0.0278075]
[1764984161990,0.05734,89534.0,89533.0,0.0565775]
[1764984162484,0.05834,89534.0,89533.0,0.0565775]
[1764984169799,0.001,89534.0,89533.0,0.0565775]
[1764984170993,0.001,89534.0,89533.0,0.0865754]
[1764984171588,0.44123,89555.0,89554.0,0.05597]
[1764984171790,0.05647,89555.0,89554.0,0.05597]
[1764984173099,0.05847,89555.0,89554.0,0.05597]
[1764984173899,0.46602,89555.0,89554.0,0.02796]
[1764984174693,0.05647,89546.0,89545.0,0.0736]
[1764984175701,0.05647,89546.0,89545.0,0.05597]
[1764984177807,0.05647,89546.0,89545.0,0.0736]
[1764984180604,0.0671538,89559.0,89558.0,0.05807]
[1764984180813,0.4771538,89559.0,89558.0,0.05807]
[1764984181205,0.4771538,89559.0,89558.0,0.02819]
[1764984181507,0.05599,89547.0,89546.0,0.0692353]
[1764984183001,0.05699,89547.0,89546.0,0.0692353]
[1764984185802,0.40699,89547.0,89546.0,0.05807]
[1764984186010,0.05599,89543.0,89542.0,0.0692358]
[1764984187308,0.07249,89540.0,89535.0,0.04004927]
[1764984187605,0.05599,89536.0,89535.0,0.0692367]
[1764984188210,0.05599,89536.0,89535.0,0.12065304]
[1764984189216,0.05599,89536.0,89535.0,0.09850377]
[1764984189410,0.02853,89536.0,89535.0,0.09850377]
[1764984189917,0.02953,89536.0,89535.0,0.09850377]
[1764984190317,0.001,89536.0,89535.0,0.09850377]
[1764984191724,0.181223,89560.0,89535.0,0.09850377]
[1764984191725,0.060108,89560.0,89559.0,0.05807]
[1764984192019,0.05599,89562.0,89561.0,0.05807]
[1764984192215,0.48599,89562.0,89561.0,0.05807]
[1764984192416,0.05599,89554.0,89553.0,0.0582375]
[1764984194320,0.42599,89554.0,89553.0,0.0001675]
[1764984194523,0.42599,89554.0,89553.0,0.00258752]
[1764984194723,0.42599,89554.0,89553.0,0.03077752]
[1764984194918,0.42599,89554.0,89553.0,0.0582375]
[1764984195418,0.42599,89554.0,89553.0,0.0001675]
[1764984196629,0.42599,89554.0,89553.0,0.06065752]
[1764984197323,0.42599,89554.0,89553.0,0.0582375]
[1764984197523,0.42599,89554.0,89553.0,0.0001675]
[1764984200433,0.42599,89554.0,89553.0,0.0582375]
[1764984203432,0.39853,89554.0,89553.0,0.0582375]
[1764984203734,0.42599,89554.0,89553.0,0.0582375]
[1764984203938,0.42599,89554.0,89553.0,0.0001675]
[1764984205031,0.42599,89554.0,89553.0,0.00258752]
[1764984205230,0.42599,89554.0,89553.0,0.0001675]
[1764984205631,0.42599,89554.0,89553.0,0.00258752]
[1764984205830,0.42599,89554.0,89553.0,0.03077752]
[1764984206029,0.42599,89554.0,89553.0,0.0283575]
[1764984209531,0.42599,89554.0,89553.0,0.0001675]
[1764984210533,0.05463,89551.0,89550.0,0.03004514]
[1764984210733,0.07113,89545.0,89544.0,0.04006019]
[1764984210938,0.43113,89545.0,89544.0,0.04006019]
[1764984213044,0.43113,89545.0,89543.0,0.04006019]
[1764984213237,0.05463,89544.0,89543.0,0.06895019]
[1764984213538,0.44463,89544.0,89543.0,0.06895019]
[1764984214335,0.44463,89544.0,89543.0,0.04006019]
[1764984215541,0.05463,89541.0,89540.0,0.01653079]
[1764984215739,0.05463,89537.0,89536.0,0.0001675]
[1764984215939,0.40463,89537.0,89536.0,0.0290575]
[1764984217946,0.40463,89537.0,89536.0,0.0001675]
[1764984218147,0.40463,89537.0,89528.0,0.0111675]
[1764984218148,0.05463,89526.0,89525.0,0.06000781]
[1764984218341,0.05463,89513.0,89512.0,0.05830856]
[1764984218538,0.05463,89509.0,89508.0,0.05789]
[1764984218753,0.05463,89509.0,89508.0,0.06936701]
[1764984219145,0.05463,89509.0,89508.0,0.05789]
[1764984220548,0.02713,89509.0,89508.0,0.08738437]
[1764984220754,0.05463,89509.0,89508.0,0.07582]
[1764984221153,0.46463,89509.0,89508.0,0.02889]
[1764984221354,0.05463,89503.0,89502.0,0.0690608]
[1764984224258,0.0744309,89502.0,89500.0,0.0001675]
[1764984224456,0.4944309,89502.0,89500.0,0.0001675]
[1764984226656,0.05463,89487.0,89486.0,0.00027937]
[1764984227351,0.40463,89487.0,89486.0,0.00027937]
[1764984227655,0.4047286,89487.0,89486.0,0.00027937]
[1764984233854,0.4047286,89487.0,89486.0,0.02769937]
[1764984234450,0.4047286,89487.0,89486.0,0.05750937]
[1764984237562,0.4047286,89487.0,89486.0,0.00027937]
[1764984238057,0.4047286,89487.0,89486.0,0.05750937]
[1764984242960,0.4047286,89487.0,89486.0,0.02769937]
[1764984243149,0.4047286,89487.0,89486.0,0.00027937]
[1764984243956,0.4047286,89487.0,89486.0,0.06103939]
[1764984244159,0.0272286,89487.0,89486.0,0.05861937]
[1764984244658,0.0542886,89487.0,89486.0,0.05861937]
[1764984246856,9.86e-05,89487.0,89486.0,0.41861937]
[1764984250160,0.0562886,89487.0,89486.0,0.05861937]
[1764984250362,0.0562886,89487.0,89486.0,0.09860152]
[1764984250557,9.86e-05,89487.0,89486.0,0.52860152]
[1764984251358,9.86e-05,89487.0,89486.0,0.48861937]
[1764984254357,9.86e-05,89487.0,89486.0,0.54841579]
[1764984254660,9.86e-05,89487.0,89486.0,0.48861937]
[1764984254866,0.00016761,89495.0,89494.0,0.0695119]
[1764984255160,0.0111707,89504.0,89500.0,0.05834]
[1764984255363,0.05619,89501.0,89500.0,0.05834]
[1764984257067,0.05619,89501.0,89500.0,0.07506]
[1764984259263,0.05619,89501.0,89500.0,0.05834]
[1764984259666,0.05619,89497.0,89496.0,0.05834]
[1764984259856,0.05619,89497.0,89496.0,0.02972]
[1764984260057,0.05619,89497.0,89496.0,0.05834]
[1764984262967,0.0403007,89504.0,89503.0,0.05834]
[1764984263168,0.0673607,89504.0,89503.0,0.05834]
[1764984269063,0.0673607,89504.0,89500.0,0.06982392]
[1764984269064,0.05619,89501.0,89500.0,0.06982392]
[1764984269268,0.45619,89501.0,89500.0,0.06982392]
[1764984269567,0.45619,89501.0,89500.0,0.09844392]
[1764984271371,0.45619,89501.0,89500.0,0.05834]
[1764984276872,0.22619,89501.0,89500.0,0.05834]
[1764984277377,0.22619,89501.0,89500.0,0.07598]
[1764984277576,0.00016761,89509.0,89500.0,0.07598]
[1764984277577,0.06994771,89509.0,89508.0,0.05575]
[1764984277774,0.25877761,89509.0,89508.0,0.05817002]
[1764984279580,0.26994761,89509.0,89508.0,0.05817002]
[1764984281480,0.43994761,89509.0,89508.0,0.05817002]
[1764984282481,0.43994761,89509.0,89508.0,0.05575]
[1764984282683,0.43994761,89509.0,89508.0,0.02711]
[1764984282881,0.05861,89506.0,89505.0,0.09592205]
[1764984283068,0.43861,89506.0,89505.0,0.09592205]
[1764984283273,0.43861,89506.0,89505.0,0.05575]
[1764984285788,0.05861,89501.0,89499.0,0.04017205]
[1764984285987,0.05861,89501.0,89500.0,0.05817002]
[1764984287190,0.05861,89501.0,89500.0,0.04017205]
[1764984287579,0.05861,89501.0,89500.0,0.06728205]
[1764984287775,0.05861,89501.0,89500.0,0.09592205]
[1764984290481,0.46861,89501.0,89500.0,0.09592205]
[1764984293183,0.46861,89501.0,89500.0,0.02711]
[1764984293385,0.46861,89501.0,89492.0,0.09136423]
[1764984293386,0.05861,89493.0,89492.0,0.14711423]
[1764984296094,0.02994,89493.0,89492.0,0.14711423]
[1764984296490,0.05928,89493.0,89492.0,0.14711423]
[1764984299597,0.02994,89493.0,89492.0,0.14711423]
[1764984299896,0.05893,89504.0,89503.0,0.05671]
[1764984300191,0.06935761,89509.0,89508.0,0.05614]
[1764984300387,0.20935761,89509.0,89508.0,0.05856002]
[1764984302595,0.05802,89507.0,89506.0,0.09636484]
[1764984302896,0.09802,89507.0,89506.0,0.09636484]
[1764984303289,0.09802,89507.0,89506.0,0.05614]
[1764984304291,0.47802,89507.0,89506.0,0.05614]
[1764984305202,0.05802,89507.0,89506.0,0.05614]
[1764984305400,0.24802,89507.0,89506.0,0.05614]
[1764984306400,0.00016761,89509.0,89508.0,0.05614]
[1764984306605,0.00016761,89509.0,89508.0,0.05856002]
[1764984306796,0.02843761,89509.0,89508.0,0.05856002]
[1764984307200,0.05818761,89509.0,89508.0,0.05856002]
[1764984310508,0.05818761,89509.0,89508.0,0.09872888]
[1764984312803,0.05818761,89509.0,89508.0,0.07629002]
[1764984313304,0.05818761,89509.0,89508.0,0.09872219]
[1764984314299,0.05818761,89509.0,89508.0,0.05856002]
[1764984319110,0.05818761,89509.0,89508.0,0.05614]
[1764984320106,0.05818761,89509.0,89508.0,0.11403217]
[1764984323217,0.05818761,89509.0,89508.0,0.07387]
[1764984326011,0.43818761,89509.0,89508.0,0.05614]
[1764984326522,0.43818761,89509.0,89508.0,0.0282]
[1764984327014,0.0288101,89508.0,89504.0,0.0282]
[1764984327217,0.05802,89505.0,89504.0,0.0282]
[1764984327519,0.05802,89505.0,89504.0,0.05614]
[1764984327726,0.41802,89505.0,89504.0,0.05614]
[1764984331317,0.41802,89505.0,89504.0,0.11647691]
[1764984333008,0.41802,89505.0,89500.0,0.0401644]
[1764984333009,0.01647,89504.0,89500.0,0.0401644]
[1764984333209,0.01647,89504.0,89492.0,0.00016761]
[1764984333210,0.05867,89493.0,89492.0,0.00016761]
[1764984333415,0.44867,89493.0,89492.0,0.03086763]
[1764984333614,0.44867,89493.0,89492.0,0.05665761]
[1764984336326,0.44867,89493.0,89492.0,0.00016761]
[1764984337818,0.05867,89487.0,89486.0,0.00027937]
[1764984338117,0.40867,89487.0,89486.0,0.00027937]
[1764984341125,0.05867,89479.0,89478.0,0.00016761]
[1764984341425,0.41867,89479.0,89478.0,0.00016761]
[1764984341719,0.41867,89479.0,89478.0,0.01764018]
[1764984342025,0.4298437,89479.0,89478.0,0.01764018]
[1764984343511,0.41867,89479.0,89478.0,0.01764018]
[1764984344617,0.41867,89479.0,89478.0,0.07413018]
[1764984344814,0.13867,89479.0,89478.0,0.07413018]
[1764984347316,0.05867,89479.0,89478.0,0.07413018]
[1764984352432,0.05867,89479.0,89478.0,0.08530408]
[1764984353231,0.48867,89479.0,89478.0,0.07413018]
[1764984362526,0.05867,89479.0,89478.0,0.07413018]
[1764984363133,0.02935,89479.0,89478.0,0.07413018]
[1764984363428,0.05553,89481.0,89480.0,0.07325]
[1764984363635,0.05553,89481.0,89480.0,0.09314259]
[1764984364329,0.05553,89481.0,89480.0,0.13330699]
[1764984364534,0.05553,89481.0,89480.0,0.09314259]
[1764984365036,0.02774,89481.0,89480.0,0.09314259]
[1764984365426,0.05553,89481.0,89480.0,0.09314259]
[1764984366131,0.4367035,89481.0,89480.0,0.01747257]
[1764984375450,0.4367035,89481.0,89480.0,0.04451257]
[1764984376449,0.4367035,89481.0,89480.0,0.01747257]
[1764984377756,0.4367035,89481.0,89480.0,0.07275257]
[1764984378343,0.4367035,89481.0,89480.0,0.01747257]
[1764984378547,0.0667049,89470.0,89468.0,0.04016697]
[1764984378750,0.05553,89466.0,89465.0,0.04016697]
[1764984379054,0.43553,89466.0,89465.0,0.04016697]
[1764984379354,0.0667055,89465.0,89464.0,0.04016697]